bitfinex/quotes_SOLUSD_20260306
["timestamp","ask_amount","ask_price","bid_price","bid_amount"]
[1772763210052,11.30460101,89.25,89.184,0.73907986]
[1772763210231,0.1,89.25,89.194,0.73907986]
[1772763211632,11.20460733,89.249,89.194,0.73907986]
[1772763211943,11.28923764,89.249,89.194,0.73907986]
[1772763212242,11.20460733,89.249,89.194,0.73907986]
[1772763212446,0.08463031,89.249,89.199,1.023403]
[1772763212656,0.08463031,89.249,89.2,0.73907986]
[1772763213858,0.1,89.25,89.2,0.73907986]
[1772763214356,0.1,89.25,89.202,0.73907986]
[1772763214668,0.1,89.25,89.208,0.73907986]
[1772763216852,0.1,89.25,89.211,0.73907986]
[1772763218858,0.1,89.25,89.214,0.73907986]
[1772763219778,0.1,89.25,89.217,0.73907986]
[1772763220064,0.1,89.26,89.217,0.73907986]
[1772763220444,0.10263177,89.284,89.217,0.73907986]
[1772763220647,0.20476541,89.282,89.217,0.73907986]
[1772763220836,0.20476541,89.28,89.222,0.73907986]
[1772763221041,0.20476541,89.28,89.223,0.73907986]
[1772763221747,0.20695225,89.279,89.223,0.73907986]
[1772763224165,0.21125083,89.277,89.225,0.73907986]
[1772763225161,0.21125083,89.277,89.206,11.2099525]
[1772763225162,3.43301518,89.25,89.206,11.2099525]
[1772763225354,0.21336511,89.249,89.206,11.2099525]
[1772763225554,0.21336511,89.249,89.206,11.94903236]
[1772763225750,0.28432314,89.267,89.199,2.95387917]
[1772763225971,3.43301518,89.24,89.199,2.95387917]
[1772763226163,39.22052016,89.239,89.199,2.95387917]
[1772763226467,3.43301518,89.22,89.168,0.75939648]
[1772763226645,3.43301518,89.22,89.169,0.90155805]
[1772763226854,3.43301518,89.22,89.17,0.75939648]
[1772763227152,3.43301518,89.21,89.164,0.75939648]
[1772763227357,3.43301518,89.2,89.164,0.75939648]
[1772763227558,3.43301518,89.2,89.163,11.21541446]
[1772763227862,3.43301518,89.21,89.158,0.75939648]
[1772763228051,0.28432314,89.238,89.162,11.21554025]
[1772763228371,0.28432314,89.25,89.168,0.75939648]
[1772763228670,0.28432314,89.25,89.173,3.69383402]
[1772763228671,3.43301518,89.25,89.173,3.69383402]
[1772763228846,39.21524688,89.251,89.174,0.75939648]
[1772763229046,38.21524688,89.251,89.171,0.28432314]
[1772763229246,38.21524688,89.251,89.172,0.75939648]
[1772763229768,3.43301518,89.24,89.172,0.75939648]
[1772763230151,3.71733832,89.25,89.172,0.75939648]
[1772763230554,3.71733832,89.25,89.171,0.28432314]
[1772763230555,9.18673551,89.24,89.178,0.75939648]
[1772763231071,0.28432314,89.248,89.178,0.75939648]
[1772763231366,38.5004488,89.249,89.179,0.75939648]
[1772763232267,10.48893047,89.249,89.18,4.82477569]
[1772763232470,10.48893047,89.249,89.185,0.75939648]
[1772763232705,11.20335204,89.259,89.187,0.28432314]
[1772763232855,11.20335204,89.259,89.189,0.75939648]
[1772763233060,11.20335204,89.259,89.191,0.75939648]
[1772763233356,39.21173214,89.259,89.193,0.28432314]
[1772763233666,39.21173214,89.259,89.196,0.75939648]
[1772763233969,39.21173214,89.259,89.198,0.75939648]
[1772763234462,0.02130094,89.258,89.198,0.75939648]
[1772763234972,0.02130094,89.258,89.201,0.75939648]
[1772763236872,0.02529666,89.266,89.204,1.04371962]
[1772763237047,0.02529666,89.266,89.206,0.75939648]
[1772763237249,0.02529666,89.266,89.207,0.28432314]
[1772763237467,0.02529666,89.266,89.208,0.75939648]
[1772763238154,0.02529666,89.266,89.211,0.75939648]
[1772763238467,0.02919448,89.268,89.211,0.75939648]
[1772763238647,11.20209703,89.269,89.211,0.75939648]
[1772763238844,11.23077982,89.274,89.211,0.75939648]
[1772763239975,11.20158534,89.274,89.211,0.75939648]
[1772763240350,0.0311438,89.274,89.214,0.75939648]
[1772763241071,0.03118304,89.269,89.214,0.75939648]
[1772763242861,0.03118304,89.269,89.217,0.75939648]
[1772763244775,0.03118304,89.269,89.218,39.22975183]
[1772763244959,0.03118304,89.269,89.219,0.75939648]
[1772763245290,55.99530226,89.294,89.219,0.75939648]
[1772763245291,11.20033169,89.284,89.224,0.75939648]
[1772763245457,11.20033169,89.284,89.225,0.75939648]
[1772763245657,11.20033169,89.284,89.227,0.75939648]
[1772763245876,11.20033169,89.284,89.228,0.75939648]
[1772763246572,0.03139145,89.283,89.228,0.75939648]
[1772763246865,0.03139145,89.268,89.222,11.9673945]
[1772763247591,0.03142603,89.259,89.214,0.75939648]
[1772763248164,0.03142603,89.259,89.209,11.20963131]
[1772763248464,0.03142603,89.259,89.209,11.96902779]
[1772763248666,0.03142603,89.259,89.21,0.75939648]
[1772763248865,0.03142603,89.259,89.212,0.75939648]
[1772763251087,0.03151774,89.258,89.214,0.75939648]
[1772763252873,0.03151774,89.258,89.217,0.75939648]
[1772763253075,0.03151774,89.258,89.22,0.75939648]
[1772763253589,0.03151774,89.258,89.209,0.75939648]
[1772763253767,0.03160906,89.249,89.201,0.75939648]
[1772763255282,0.03164691,89.239,89.191,0.75939648]
[1772763255476,0.03164691,89.239,89.181,28.03283525]
[1772763255477,0.03164691,89.229,89.186,11.21245767]
[1772763255678,0.03164691,89.229,89.188,0.75939648]
[1772763257890,0.03173498,89.228,89.19,0.75939648]
[1772763258269,9.18640978,89.24,89.19,0.75939648]
[1772763258270,11.20582795,89.24,89.19,0.75939648]
[1772763258580,11.20582795,89.24,89.192,0.90155805]
[1772763258781,11.20582795,89.24,89.194,0.75939648]
[1772763259095,11.20582795,89.24,89.195,1.04371962]
[1772763259298,11.20582795,89.24,89.197,0.90155805]
[1772763259592,11.20582795,89.24,89.198,0.75939648]
[1772763260178,0.0317859,89.239,89.2,0.75939648]
[1772763262382,9.18640978,89.26,89.202,0.75939648]
[1772763262383,0.03184002,89.259,89.202,0.75939648]
[1772763262890,9.18640978,89.26,89.196,11.21114112]
[1772763262891,0.0318616,89.239,89.196,11.21114112]
[1772763263081,0.0318616,89.239,89.195,11.21139077]
[1772763263800,0.0318616,89.239,89.196,0.75939648]
[1772763263987,0.03189597,89.249,89.196,0.28432314]
[1772763264189,0.03189597,89.249,89.198,0.75939648]
[1772763264495,0.03189597,89.249,89.2,0.75939648]
[1772763265700,0.03189597,89.249,89.202,0.75939648]
[1772763267094,9.18640978,89.24,89.202,0.75939648]
[1772763267596,11.2058629,89.239,89.202,0.75939648]
[1772763267802,0.03200359,89.238,89.204,0.75939648]
[1772763269397,0.03200359,89.238,89.197,11.97052107]
[1772763270011,0.03200359,89.238,89.198,0.77044443]
[1772763273411,0.03200359,89.238,89.2,0.77044443]
[1772763273579,0.03220192,89.229,89.176,0.77044443]
[1772763274588,0.03220192,89.229,89.175,0.14216157]
[1772763274901,9.18640978,89.23,89.176,0.77044443]
[1772763274902,0.03221837,89.227,89.176,0.77044443]
[1772763275219,39.22491566,89.229,89.178,0.77044443]
[1772763275790,0.0322386,89.228,89.178,0.77044443]
[1772763276205,0.0322386,89.219,89.178,0.77044443]
[1772763277387,0.03225809,89.226,89.18,0.77044443]
[1772763277597,11.20711876,89.229,89.18,0.77044443]
[1772763278697,0.03230132,89.248,89.183,1.05476757]
[1772763278999,0.03230132,89.248,89.186,0.77044443]
[1772763279202,11.20485842,89.247,89.187,0.28432314]
[1772763279399,11.20485842,89.247,89.188,0.77044443]
[1772763279708,28.01096773,89.251,89.191,0.77044443]
[1772763282014,28.01096773,89.251,89.193,0.28432314]
[1772763282188,28.01096773,89.251,89.194,0.77044443]
[1772763282715,0.03238813,89.25,89.194,0.77044443]
[1772763285111,28.01096773,89.251,89.2,0.77044443]
[1772763286705,0.03247501,89.25,89.2,0.77044443]
[1772763286911,0.03247501,89.249,89.2,0.77044443]
[1772763287113,0.03247501,89.248,89.202,0.77044443]
[1772763290097,0.03247501,89.248,89.203,0.77044443]
[1772763291609,0.03247501,89.248,89.205,0.77044443]
[1772763293814,39.21612566,89.249,89.207,0.77044443]
[1772763295094,0.03259362,89.252,89.209,0.77044443]
[1772763295294,39.21085355,89.261,89.209,0.77044443]
[1772763295712,11.20310101,89.261,89.21,0.77044443]
[1772763295914,11.23572416,89.261,89.212,0.77044443]
[1772763296113,11.23572416,89.261,89.213,0.77044443]
[1772763296320,11.23572416,89.261,89.213,0.912606]
[1772763297897,0.03265033,89.268,89.216,0.77044443]
[1772763299924,39.20733961,89.269,89.218,0.75939648]
[1772763299925,0.03269393,89.259,89.218,0.75939648]
[1772763300309,3.43137718,89.25,89.218,0.75939648]
[1772763300507,3.43137718,89.25,89.18,0.75939648]
[1772763300508,0.03269393,89.249,89.18,0.75939648]
[1772763300711,0.03270839,89.256,89.182,0.75939648]
[1772763300908,0.03270839,89.256,89.186,1.04371962]
[1772763301108,39.20733961,89.269,89.192,0.75939648]
[1772763301307,0.03270839,89.268,89.194,1.04371962]
[1772763301508,0.03270839,89.268,89.196,0.75939648]
[1772763301712,0.03270839,89.268,89.197,1.04371962]
[1772763301911,0.03272167,89.259,89.203,1.04371962]
[1772763302122,0.03272167,89.259,89.208,0.75939648]
[1772763302409,11.20209703,89.269,89.208,0.75939648]
[1772763302604,0.03273299,89.268,89.208,0.75939648]
[1772763304916,0.03273299,89.268,89.211,0.75939648]
[1772763305436,0.0327559,89.259,89.211,0.75939648]
[1772763305747,0.0327651,89.249,89.211,0.75939648]
[1772763306839,0.03277525,89.248,89.211,0.75939648]
[1772763307240,0.03277525,89.248,89.196,30.41196068]
[1772763307241,0.03277525,89.248,89.213,0.75939648]
[1772763309729,0.03277525,89.248,89.21,11.20938734]
[1772763310335,0.03277525,89.248,89.21,0.75939648]
[1772763315335,0.03277525,89.248,89.212,0.75939648]
[1772763317920,28.00711854,89.264,89.213,39.23195049]
[1772763318122,0.03287639,89.261,89.214,0.75939648]
[1772763319333,0.03287639,89.261,89.215,0.75939648]
[1772763319655,11.20285,89.263,89.217,0.90155805]
[1772763319834,0.03289089,89.262,89.218,0.75939648]
[1772763320148,0.03289089,89.262,89.214,0.28432314]
[1772763320149,0.03289089,89.262,89.22,0.75939648]
[1772763320731,0.03290737,89.259,89.214,0.75939648]
[1772763320927,0.03290737,89.249,89.214,0.75939648]
[1772763321632,0.03292386,89.269,89.214,0.75939648]
[1772763322138,39.20733961,89.269,89.216,0.75939648]
[1772763322342,0.03292386,89.268,89.217,0.75939648]
[1772763324256,0.03292386,89.268,89.204,61.9]
[1772763324257,0.03292386,89.268,89.219,0.75939648]
[1772763327251,0.03292386,89.268,89.221,0.75939648]
[1772763329634,37.73587191,89.279,89.223,0.77585841]
[1772763330640,3.42718807,89.27,89.223,0.77585841]
[1772763331459,3.42718807,89.26,89.223,0.77585841]
[1772763331659,3.42718807,89.26,89.198,61.9]
[1772763331660,3.42718807,89.28,89.225,0.77585841]
[1772763331959,0.28432314,89.288,89.225,0.77585841]
[1772763332641,37.98288062,89.289,89.225,0.77585841]
[1772763332949,3.42718807,89.28,89.225,0.77585841]
[1772763334254,39.20294805,89.279,89.227,0.77585841]
[1772763337058,39.20294805,89.279,89.229,0.77585841]
[1772763339060,3.69383402,89.272,89.22,1.06018155]
[1772763339265,3.69383402,89.272,89.222,0.77585841]
[1772763339557,39.20470456,89.275,89.222,0.77585841]
[1772763341259,28.0033604,89.275,89.224,0.77585841]
[1772763341843,28.0033604,89.275,89.224,0.28432314]
[1772763342042,11.2008423,89.279,89.226,0.77585841]
[1772763342262,11.2008423,89.279,89.228,0.77585841]
[1772763342440,11.2008423,89.279,89.229,0.28432314]
[1772763342763,11.2008423,89.279,89.232,0.77585841]
[1772763343560,11.2008423,89.279,89.185,63.11974628]
[1772763343561,39.19416789,89.299,89.235,0.77585841]
[1772763346368,3.42718807,89.28,89.227,0.77585841]
[1772763347453,0.28432314,89.289,89.227,0.77585841]
[1772763347977,3.52718807,89.3,89.228,0.77585841]
[1772763348150,3.52718807,89.3,89.229,0.77585841]
[1772763348350,3.69383402,89.296,89.232,0.77585841]
[1772763349171,3.42718807,89.29,89.232,0.77585841]
[1772763351773,39.19855748,89.289,89.234,0.77585841]
[1772763354552,11.19883532,89.295,89.236,0.77585841]
[1772763354758,11.19883532,89.295,89.238,0.77585841]
[1772763355076,39.19592362,89.295,89.24,0.28432314]
[1772763355280,39.19592362,89.295,89.242,0.77585841]
[1772763355460,3.42718807,89.29,89.242,0.77585841]
[1772763356760,3.52718807,89.3,89.244,0.77585841]
[1772763358555,0.1,89.3,89.245,0.77585841]
[1772763358879,0.1,89.3,89.249,0.77585841]
[1772763359053,0.1,89.3,89.25,0.91801998]
[1772763359256,0.1,89.3,89.252,0.77585841]
[1772763361197,0.1,89.3,89.253,39.21436814]
[1772763361360,0.1,89.3,89.255,0.77585841]
[1772763362679,0.1,89.3,89.258,0.77585841]
[1772763364770,0.1,89.3,89.26,1.06018155]
[1772763364970,0.1,89.3,89.261,0.77585841]
[1772763365189,3.69383402,89.324,89.262,0.72613295]
[1772763365372,0.10087994,89.328,89.262,0.72613295]
[1772763366167,0.1009749,89.309,89.262,0.72613295]
[1772763366367,0.1009749,89.299,89.262,0.72613295]
[1772763367873,0.10116841,89.289,89.212,3.69383402]
[1772763368087,0.10116841,89.289,89.21,0.72613295]
[1772763368986,0.10116841,89.289,89.207,0.28432314]
[1772763368987,0.10126175,89.279,89.213,0.72613295]
[1772763370093,37.80430126,89.279,89.236,0.77653501]
[1772763370302,0.72755912,89.259,89.197,11.21113938]
[1772763370593,0.72755912,89.249,89.198,0.28432314]
[1772763370886,0.72755912,89.249,89.197,39.23898785]
[1772763371089,0.72755912,89.249,89.198,0.28432314]
[1772763371466,2.65252053,89.26,89.2,0.75204707]
[1772763373394,0.05235758,89.258,89.202,0.75204707]
[1772763375995,0.05235758,89.258,89.203,11.2103853]
[1772763376301,0.05235758,89.258,89.204,0.75204707]
[1772763377395,0.05741886,89.258,89.205,0.75204707]
[1772763377600,11.20335204,89.259,89.206,0.28432314]
[1772763377798,11.20335204,89.259,89.208,0.75204707]
[1772763377978,11.20335204,89.259,89.209,0.28432314]
[1772763378299,0.05865101,89.267,89.212,0.75204707]
[1772763378501,11.20209703,89.269,89.212,0.75204707]
[1772763380381,0.06105965,89.277,89.214,0.75204707]
[1772763380581,0.06105965,89.277,89.215,1.03637021]
[1772763380895,0.06105965,89.277,89.214,0.28432314]
[1772763380896,0.06105965,89.277,89.217,1.03637021]
[1772763381092,0.06105965,89.277,89.219,0.75204707]
[1772763381289,0.06105965,89.277,89.221,0.75204707]
[1772763381491,0.06105965,89.277,89.222,0.75204707]
[1772763382596,0.06457019,89.288,89.225,0.75204707]
[1772763382822,11.19958785,89.289,89.225,0.75204707]
[1772763383406,11.19958785,89.289,89.228,0.89420864]
[1772763384908,0.06457019,89.298,89.233,1.03637021]
[1772763385215,0.06457019,89.298,89.235,0.28432314]
[1772763385389,0.06457019,89.298,89.237,0.75204707]
[1772763385587,0.06457019,89.298,89.239,0.75204707]
[1772763385788,0.06457019,89.298,89.24,0.89420864]
[1772763387912,0.06457019,89.298,89.243,0.89420864]
[1772763390428,0.06457019,89.298,89.246,0.75204707]
[1772763390909,0.07537656,89.289,89.246,0.75204707]
[1772763392312,0.07639339,89.288,89.246,0.75204707]
[1772763392606,0.0774,89.259,89.211,0.75204707]
[1772763392810,0.0774,89.251,89.211,0.75204707]
[1772763393010,0.0774,89.249,89.211,0.75204707]
[1772763393309,0.0774,89.249,89.196,2.38407852]
[1772763393310,0.0774,89.239,89.197,0.75204707]
[1772763393500,0.0774,89.229,89.196,2.38407852]
[1772763393896,0.07840692,89.219,89.181,0.75204707]
[1772763394308,0.07840692,89.218,89.181,0.75204707]
[1772763394510,0.07840692,89.218,89.171,0.75204707]
[1772763395015,0.07840692,89.218,89.172,0.75204707]
[1772763396419,0.07840692,89.218,89.174,0.75204707]
[1772763398803,0.07840692,89.218,89.175,11.21390524]
[1772763399009,0.07840692,89.218,89.176,0.75204707]
[1772763401021,0.08508809,89.209,89.176,0.75204707]
[1772763402608,0.08508809,89.209,89.166,0.75204707]
[1772763402922,0.08691047,89.198,89.157,0.75204707]
[1772763404523,11.20963131,89.209,89.159,0.75204707]
[1772763404729,11.20963131,89.209,89.136,44.8751929]
[1772763404730,3.69383402,89.197,89.142,0.75204707]
[1772763404931,11.2146598,89.169,89.142,0.75204707]
[1772763405109,0.08867784,89.159,89.14,1e-08]
[1772763405310,0.08867784,89.149,89.12,1e-08]
[1772763405504,0.08867784,89.139,89.12,1e-08]
[1772763406219,0.08955868,89.129,89.1,1e-08]
[1772763406408,0.08955868,89.128,89.1,1e-08]
[1772763407205,0.09042549,89.119,89.1,1e-08]
[1772763409100,0.09214713,89.127,89.1,1e-08]
[1772763411020,0.09382357,89.119,89.091,2.00478513]
[1772763411512,0.09464774,89.118,89.091,2.00478513]
[1772763412125,39.27333116,89.119,89.092,0.75204707]
[1772763412313,0.09464774,89.129,89.092,0.75204707]
[1772763414912,0.09464774,89.129,89.095,0.75204707]
[1772763415339,48.48007325,89.13,89.095,0.75204707]
[1772763415512,11.21616922,89.157,89.095,0.75204707]
[1772763415713,28.04196989,89.153,89.095,0.75204707]
[1772763416035,11.21616922,89.157,89.096,1.03637021]
[1772763416212,11.21616922,89.157,89.098,0.75204707]
[1772763416409,11.21616922,89.157,89.1,0.75204707]
[1772763416738,11.21616922,89.157,89.102,0.89420864]
[1772763417030,11.21390524,89.175,89.105,0.75204707]
[1772763417221,11.21390524,89.175,89.107,0.75204707]
[1772763417422,11.21390524,89.175,89.108,1.03637021]
[1772763417612,11.21390524,89.175,89.11,0.75204707]
[1772763417815,11.21390524,89.175,89.111,0.28432314]
[1772763418019,11.21390524,89.175,89.113,0.89420864]
[1772763418331,11.21390524,89.175,89.114,0.75204707]
[1772763420432,0.28432314,89.196,89.103,140.28708346]
[1772763420433,11.2122707,89.188,89.117,0.28432314]
[1772763420630,11.2122707,89.188,89.119,0.75204707]
[1772763420835,11.2122707,89.188,89.121,0.75204707]
[1772763421018,11.2122707,89.188,89.122,1.03637021]
[1772763421221,11.2122707,89.188,89.124,0.75204707]
[1772763422345,0.28432314,89.199,89.127,0.75204707]
[1772763423038,28.02692023,89.2,89.127,0.75204707]
[1772763423416,0.09986739,89.199,89.127,0.75204707]
[1772763424437,0.09986739,89.199,89.131,0.75204707]
[1772763424743,0.09986739,89.199,89.133,0.75204707]
[1772763424929,0.09986739,89.199,89.134,0.75204707]
[1772763425837,0.09916235,89.189,89.134,0.75204707]
[1772763426635,0.09916235,89.189,89.136,0.75204707]
[1772763427853,0.09916235,89.189,89.137,0.28432314]
[1772763428142,0.09916235,89.189,89.14,1.03637021]
[1772763428324,0.09916235,89.189,89.142,0.75204707]
[1772763428528,0.09916235,89.189,89.144,0.75204707]
[1772763430549,0.09916235,89.189,89.146,0.75204707]
[1772763432856,0.09916235,89.189,89.148,0.75204707]
[1772763435150,0.09719003,89.205,89.15,0.75204707]
[1772763437633,0.09719003,89.205,89.152,0.75204707]
[1772763439960,0.09719003,89.205,89.154,0.75204707]
[1772763440148,95.28400237,89.207,89.126,61.9]
[1772763440149,0.38050584,89.199,89.145,0.75204707]
[1772763440351,0.0961827,89.179,89.138,0.75204707]
[1772763440543,0.09598861,89.169,89.127,0.75204707]
[1772763440742,3.69383402,89.197,89.11,0.75204707]
[1772763440743,0.09598861,89.149,89.11,0.75204707]
[1772763441337,0.28432314,89.166,89.11,0.75204707]
[1772763441338,0.09598861,89.166,89.11,0.75204707]
[1772763442160,0.09598861,89.166,89.113,0.89420864]
[1772763442762,0.09560326,89.159,89.113,0.75204707]
[1772763446552,0.09504624,89.149,89.113,0.75204707]
[1772763449562,39.2557117,89.159,89.115,0.75204707]
[1772763451351,0.09383639,89.158,89.115,0.75204707]
[1772763451540,0.09383639,89.158,89.117,0.75204707]
[1772763454169,0.09383639,89.158,89.119,0.75204707]
[1772763454867,0.09318759,89.165,89.119,0.75204707]
[1772763456966,39.2513093,89.169,89.121,0.75204707]
[1772763457173,11.2146598,89.169,89.122,1.03637021]
[1772763457348,11.2146598,89.169,89.124,0.75204707]
[1772763460066,0.09241574,89.188,89.126,0.75204707]
[1772763460260,0.09241574,89.179,89.126,0.75204707]
[1772763461357,0.09241574,89.179,89.059,18.45052887]
[1772763461358,0.28432314,89.179,89.093,1.12242263]
[1772763461561,0.28432314,89.179,89.02,0.2]
[1772763461562,0.28432314,89.179,88.94,60.79818299]
[1772763461563,4.82477569,89.099,88.94,60.79818299]
[1772763461757,22.61216157,89.124,88.94,1e-08]
[1772763461758,0.78324157,88.979,88.94,1e-08]
[1772763461947,0.78324157,88.996,88.87,0.2]
[1772763462147,3.4332974,88.95,88.87,0.2]
[1772763462375,3.4332974,88.93,88.87,11.45229055]
[1772763462552,3.4332974,88.93,88.876,11.25161168]
[1772763462553,7.49756679,88.929,88.876,11.25161168]
[1772763462752,9.37195849,88.94,88.882,11.2507907]
[1772763462753,7.49756679,88.928,88.882,11.2507907]
[1772763462948,6.54154365,88.927,88.87,0.2]
[1772763463154,3.4332974,88.97,88.89,39.57443585]
[1772763463355,0.78324157,88.971,88.893,3.69383402]
[1772763463552,0.78324157,88.949,88.89,0.2]
[1772763463748,0.78324157,88.909,88.89,1e-08]
[1772763463948,3.4332974,88.92,88.89,1e-08]
[1772763464149,3.4332974,88.92,88.88,0.2]
[1772763464150,0.78324157,88.918,88.88,0.2]
[1772763464355,11.24619035,88.919,88.88,0.2]
[1772763464666,0.28432314,88.952,88.88,0.2]
[1772763464667,0.78324157,88.959,88.884,3.69383402]
[1772763464966,0.78324157,88.949,88.885,0.14216157]
[1772763465169,0.78324157,88.939,88.881,11.25099852]
[1772763465568,0.78324157,88.929,88.881,11.25099852]
[1772763465957,0.78324157,88.929,88.88,0.2]
[1772763466162,0.78324157,88.919,88.88,0.2]
[1772763466481,39.35768261,88.928,88.88,0.2]
[1772763466482,11.24505217,88.928,88.882,0.39868226]
[1772763466776,11.24433139,88.934,88.883,0.40071683]
[1772763467457,9.25207963,88.93,88.883,0.40071683]
[1772763467662,0.78324157,88.929,88.883,0.40071683]
[1772763468458,0.78324157,88.929,88.886,0.40273016]
[1772763470272,0.78324157,88.929,88.885,0.28432314]
[1772763470273,0.78324157,88.962,88.891,0.39393587]
[1772763470472,0.78324157,88.986,88.911,0.03975537]
[1772763470677,0.78324157,88.986,88.911,0.32407851]
[1772763471175,0.78324157,88.986,88.919,0.28432314]
[1772763471785,0.78324157,88.984,88.924,0.28432314]
[1772763472168,30.95345193,88.988,88.924,0.28432314]
[1772763472169,30.95345193,88.988,88.927,0.28432314]
[1772763472679,30.95345193,88.988,88.928,0.03440067]
[1772763473061,31.7366935,88.988,88.928,0.03440067]
[1772763473262,31.7366935,88.988,88.923,3.69383402]
[1772763473263,31.7366935,88.988,88.932,0.03440067]
[1772763473761,30.95345193,88.988,88.941,0.03265662]
[1772763475683,30.95345193,88.988,88.945,0.03337916]
[1772763475866,0.78324157,88.987,88.946,0.03337916]
[1772763476067,0.78324157,88.986,88.942,0.14216157]
[1772763477571,0.78324157,88.986,88.942,0.28432314]
[1772763477777,0.78324157,88.986,88.944,0.28432314]
[1772763477976,0.78324157,88.986,88.944,0.32252101]
[1772763478180,31.7366935,88.988,88.945,0.03819787]
[1772763478476,0.78324157,88.987,88.945,0.03819787]
[1772763478676,12.02083807,88.987,88.945,0.03819787]
[1772763478883,0.78324157,88.986,88.944,0.28432314]
[1772763479765,11.23784907,88.985,88.934,0.04056811]
[1772763480080,11.23784907,88.985,88.923,3.69383402]
[1772763480081,0.7790406,88.984,88.925,0.14216157]
[1772763480275,0.7790406,88.979,88.923,0.04429697]
[1772763480464,0.7790406,88.977,88.923,0.04429697]
[1772763480662,0.7790406,88.975,88.923,0.04429697]
[1772763480867,0.7790406,88.973,88.923,0.04429697]
[1772763481080,0.7790406,88.971,88.923,0.04429697]
[1772763481380,0.7790406,88.969,88.923,0.04429697]
[1772763481588,0.7790406,88.969,88.817,102.0]
[1772763481589,0.28432314,88.926,88.804,0.44702776]
[1772763481788,0.76111898,88.857,88.806,28.15098013]
[1772763481986,0.76111898,88.849,88.806,28.15098013]
[1772763482490,10.01319861,88.87,88.807,0.64702776]
[1772763482663,0.76111898,88.869,88.807,0.64702776]
[1772763482990,0.76111898,88.849,88.805,11.26062721]
[1772763483173,0.76111898,88.839,88.805,11.26062721]
[1772763483375,0.76111898,88.839,88.8,11.36123471]
[1772763483884,0.76111898,88.827,88.8,0.1]
[1772763484281,0.76111898,88.809,88.747,0.72377443]
[1772763485263,39.40162528,88.829,88.735,3.69383402]
[1772763485264,0.76111898,88.799,88.736,0.72377443]
[1772763485680,0.76111898,88.828,88.736,0.72377443]
[1772763485882,45.01036774,88.869,88.729,191.59463081]
[1772763485883,0.76111898,88.817,88.749,3.69383402]
[1772763486085,0.76111898,88.817,88.75,0.72377443]
[1772763486289,0.76111898,88.809,88.75,0.72377443]
[1772763486473,0.76111898,88.823,88.759,0.72377443]
[1772763486984,0.76111898,88.819,88.759,0.72377443]
[1772763487589,0.76111898,88.809,88.759,0.72377443]
[1772763487789,0.76111898,88.82,88.761,0.72377443]
[1772763487999,0.07458725,88.82,88.762,0.72377443]
[1772763488289,28.13960614,88.843,88.761,0.28432314]
[1772763488290,9.25207963,88.84,88.77,0.72377443]
[1772763488491,9.26914731,88.85,88.77,0.72377443]
[1772763489793,9.26914731,88.85,88.774,3.69383402]
[1772763490092,0.76111898,88.839,88.776,0.72377443]
[1772763491996,0.76111898,88.839,88.778,0.28432314]
[1772763492195,0.76111898,88.839,88.782,0.72377443]
[1772763492582,0.76111898,88.829,88.781,0.28432314]
[1772763493180,0.76111898,88.829,88.781,1.00809757]
[1772763493496,11.25400036,88.858,88.782,0.72377443]
[1772763493497,0.76111898,88.848,88.782,0.72377443]
[1772763493689,0.76111898,88.839,88.782,0.72377443]
[1772763494196,0.76111898,88.836,88.784,0.28432314]
[1772763494381,0.76111898,88.819,88.783,39.4219614]
[1772763495001,0.76111898,88.819,88.783,11.26341754]
[1772763495204,10.40608192,88.83,88.717,0.72377443]
[1772763495205,0.76111898,88.788,88.717,0.72377443]
[1772763495383,0.76111898,88.769,88.717,0.72377443]
[1772763495901,0.76111898,88.769,88.717,0.28432314]
[1772763496196,0.76111898,88.769,88.718,0.72377443]
[1772763496497,0.76111898,88.769,88.72,1.00809757]
[1772763496697,0.76111898,88.769,88.719,39.45039957]
[1772763496698,0.76111898,88.769,88.721,0.72377443]
[1772763496897,0.76111898,88.769,88.719,39.45039957]
[1772763496898,30.0,88.797,88.723,0.72377443]
[1772763497094,11.26176854,88.796,88.724,0.72377443]
[1772763497299,9.26914731,88.79,88.724,0.72377443]
[1772763498683,9.26914731,88.79,88.727,0.72377443]
[1772763498684,20.53173613,88.79,88.727,0.72377443]
[1772763498882,0.76111898,88.789,88.727,0.72377443]
[1772763499084,0.76111898,88.779,88.727,0.72377443]
[1772763500806,11.2640519,88.778,88.728,11.27039942]
[1772763500987,0.76111898,88.777,88.729,0.72377443]
[1772763502198,0.76111898,88.769,88.729,0.72377443]
[1772763502932,0.76111898,88.767,88.721,0.72377443]
[1772763503104,0.76111898,88.759,88.709,0.72377443]
[1772763503491,0.76111898,88.749,88.708,11.27283075]
[1772763504092,0.76111898,88.739,88.708,11.27283075]
[1772763504294,0.76111898,88.739,88.698,0.72377443]
[1772763504498,0.76111898,88.739,88.663,45.11453115]
[1772763504499,0.76111898,88.705,88.617,12.00829094]
[1772763504808,39.45662589,88.705,88.619,39.49491644]
[1772763505014,9.26914731,88.7,88.62,0.72377443]
[1772763505188,9.26914731,88.7,88.623,0.72377443]
[1772763505605,9.26914731,88.7,88.622,3.69383402]
[1772763505606,45.05722267,88.776,88.633,0.72377443]
[1772763505809,45.05722267,88.776,88.646,0.72377443]